bitfinex/quotes_ETHUSD_20250323
["timestamp","ask_amount","ask_price","bid_price","bid_amount"]
[1742740518995,2.12943219,2010.9,2010.8,26.295]
[1742740519637,0.8036,2010.9,2010.8,26.295]
[1742740520194,3.31314186,2011.1,2010.8,26.295]
[1742740520533,3.31314186,2011.1,2010.8,31.2681]
[1742740521236,0.8036,2011.1,2010.8,31.26796]
[1742740521442,3.0,2011.2,2010.9,4.97283]
[1742740522229,3.0,2011.2,1878.1,0.01]
[1742740522230,4.97368,2010.6,2010.2,4.97444]
[1742740522431,7.48322186,2010.6,2010.2,4.97444]
[1742740524708,3.0,2010.6,2010.2,0.04974216]
[1742740524904,3.0,2010.6,2010.3,4.97438]
[1742740525306,7.97364,2010.6,2010.3,4.97438]
[1742740526341,3.0,2010.6,2010.3,4.97438]
[1742740527036,3.0,2010.6,2010.3,4.97418]
[1742740527237,3.0,2010.6,2010.4,4.97412]
[1742740528336,3.0,2010.6,2010.3,4.97418]
[1742740528531,3.0,2010.7,2010.3,4.97418]
[1742740528737,3.0,2010.7,2010.3,4.97425]
[1742740529039,7.97341,2010.7,2010.3,4.97425]
[1742740529239,10.04297419,2010.7,2010.3,4.97425]
[1742740530241,4.97368,2010.6,2010.2,4.9746]
[1742740530607,4.97368,2010.6,2010.2,9.94904]
[1742740530808,10.04297419,2010.7,2010.3,4.97429]
[1742740531319,0.8036,2011.0,2010.7,4.97336]
[1742740531521,4.97244,2011.1,2010.7,4.97336]
[1742740531826,3.0,2011.0,2010.8,0.29063917]
[1742740532137,3.0,2011.0,2010.7,4.97336]
[1742740533725,3.0,2011.0,2010.6,10.59463]
[1742740533726,4.4359,2011.2,2010.9,4.97275]
[1742740533931,4.4359,2011.2,2011.0,6.236785]
[1742740534110,4.4359,2011.2,2011.1,4.9724]
[1742740534709,0.8017,2011.4,2011.2,4.97214]
[1742740534910,8.28246186,2011.6,2011.2,4.97214]
[1742740535219,3.0,2011.5,2011.2,4.97214]
[1742740536340,9.40674,2011.8,2011.4,4.97166]
[1742740536512,5.50954186,2011.6,2011.1,0.7669]
[1742740536710,5.50954186,2011.6,2011.0,10.315715]
[1742740536711,10.74484,2011.5,2011.0,15.288255]
[1742740536916,4.97177,2011.4,2010.9,5.73975]
[1742740537144,7.48156186,2011.3,2011.0,4.845]
[1742740537724,12.45370186,2011.3,2011.0,4.845]
[1742740538039,7.48156186,2011.3,2011.0,4.845]
[1742740538940,12.45357186,2011.3,2011.0,4.845]
[1742740539241,4.4359,2011.4,2011.1,4.97236]
[1742740539449,3.0,2011.3,2011.1,4.97236]
[1742740539807,3.0,2011.3,2011.2,4.97215]
[1742740540339,4.4359,2011.4,2011.2,4.97215]
[1742740540544,4.4359,2011.4,2011.2,4.97201]
[1742740541418,4.4359,2011.4,2011.2,6.527601]
[1742740541938,4.4359,2011.4,2011.3,4.9719]
[1742740542143,0.8017,2012.0,2011.3,0.7669]
[1742740542309,0.8017,2012.0,2011.6,4.97102]
[1742740542514,0.8017,2012.0,2011.4,4.841]
[1742740542515,4.9707,2011.8,2011.4,9.81262]
[1742740542739,4.9707,2011.8,2011.4,14.78407]
[1742740543247,4.9707,2011.8,2011.5,4.843]
[1742740543414,4.97093,2011.7,2011.5,4.843]
[1742740543615,4.97093,2011.7,2011.4,9.81365]
[1742740544242,4.97093,2011.7,2011.4,4.842]
[1742740544629,0.8017,2011.6,2011.3,36.10372]
[1742740545551,6.67736443,2011.6,2011.3,31.132]
[1742740545846,6.67736443,2011.6,2011.3,26.293]
[1742740547353,11.64866443,2011.6,2011.3,26.293]
[1742740548152,4.97142,2011.5,2011.3,26.293]
[1742740548650,9.94306,2011.5,2011.3,26.293]
[1742740548858,11.80252663,2011.5,2011.3,26.293]
[1742740549358,6.83088663,2011.5,2011.3,26.293]
[1742740550725,4.97142,2011.5,2011.3,26.293]
[1742740552364,4.97166,2011.4,2011.3,26.293]
[1742740552925,4.97142,2011.5,2011.3,26.293]
[1742740553853,4.70616443,2011.6,2011.3,26.293]
[1742740554025,3.0,2011.6,2011.3,32.07432]
[1742740554226,3.0,2011.6,2011.4,9.79356]
[1742740555472,3.0,2011.6,2011.4,4.822]
[1742740557254,4.4359,2011.7,2011.5,4.97135]
[1742740557448,7.4359,2011.7,2011.6,5.78066]
[1742740557649,4.4359,2011.7,2011.6,5.78066]
[1742740558753,8.74578,2012.0,2011.6,5.78066]
[1742740559259,13.71614,2012.0,2011.6,5.78066]
[1742740559558,3.0,2011.8,2011.5,9.79533]
[1742740559737,7.97067,2011.8,2011.5,9.79533]
[1742740560830,7.97067,2011.8,2011.5,4.824]
[1742740562332,3.0,2011.8,2011.5,9.79524]
[1742740563782,3.0,2011.8,2011.5,14.76649]
[1742740563983,3.0,2011.8,2011.5,9.79524]
[1742740565267,3.0,2011.8,2011.5,9.79534]
[1742740565444,9.40637,2011.9,2011.6,4.97116]
[1742740566362,4.4359,2011.9,2011.6,4.97116]
[1742740566567,4.4359,2011.9,2011.7,4.97075]
[1742740566747,4.4359,2011.9,2011.7,5.75875]
[1742740567131,4.4359,2011.9,2011.6,6.528736]
[1742740567766,4.4359,2011.9,2011.6,11.499736]
[1742740567954,4.4359,2011.9,2011.7,4.97085]
[1742740569468,4.4359,2011.9,2011.7,6.6819946]
[1742740570629,3.0,2012.0,2011.7,6.6819946]
[1742740570829,3.0,2012.0,2011.7,1.7111446]
[1742740571068,7.9702,2012.0,2011.7,1.7111446]
[1742740571266,3.0,2012.0,2011.7,1.7111446]
[1742740571469,3.0,2012.0,2011.7,6.6820146]
[1742740572769,7.9702,2012.0,2011.6,4.97098]
[1742740572981,11.91539186,2012.1,2011.7,4.97074]
[1742740573159,4.4359,2012.1,2011.6,0.04970628]
[1742740573467,4.4359,2012.1,2012.0,4.97017]
[1742740573666,4.4359,2012.1,2011.9,4.97034]
[1742740573863,0.7999,2012.2,2011.9,6.043183]
[1742740574070,0.7999,2012.2,2011.9,4.97027]
[1742740576372,5.76963,2012.2,2011.8,5.75864]
[1742740576674,7.47955186,2012.1,2011.7,4.9709]
[1742740577042,12.44967186,2012.1,2011.7,4.9709]
[1742740577243,7.47955186,2012.1,2011.8,4.795]
[1742740577443,9.10446605,2012.1,2011.8,4.795]
[1742740578143,9.10446605,2012.1,2011.7,14.73473]
[1742740578343,7.47955186,2012.1,2011.7,14.73473]
[1742740579671,7.47955186,2012.1,2011.8,4.789]
[1742740580045,7.47955186,2012.1,2011.7,9.9416]
[1742740580242,7.47955186,2012.1,2011.7,9.75877]
[1742740583589,12.44968186,2012.1,2011.7,4.97077]
[1742740583790,14.51823005,2012.1,2011.7,9.75177]
[1742740584176,0.8237,2012.0,2011.7,9.75177]
[1742740584787,4.97048,2011.9,2011.6,26.282]
[1742740585092,4.97048,2011.9,2011.6,31.061]
[1742740585456,4.97048,2011.9,2011.6,31.062]
[1742740585985,8.79404,2012.0,2011.6,36.03313]
[1742740589494,4.97043,2011.9,2011.6,36.03313]
[1742740589687,11.07174601,2012.0,2011.6,36.03313]
[1742740590392,11.07174601,2012.0,2011.6,9.75113]
[1742740590590,11.07174601,2012.0,2011.6,14.72214]
[1742740592079,6.10149601,2012.0,2011.7,4.97086]
[1742740592280,3.0,2012.1,2011.9,4.97023]
[1742740592708,5.2346,2012.2,2011.9,9.9405]
[1742740592875,4.4359,2012.2,2012.0,4.97009]
[1742740593062,4.4359,2012.2,2012.0,5.25452873]
[1742740593575,4.4359,2012.2,2012.0,5.25446873]
[1742740596170,4.4359,2012.2,2012.0,10.22451873]
[1742740596466,4.4359,2012.2,2012.0,6.2769206]
[1742740596865,2.50954186,2012.3,2012.0,6.2769206]
[1742740597069,3.0,2012.3,2012.0,11.2469506]
[1742740597367,3.0,2012.3,2012.0,6.2769206]
[1742740597793,3.0,2012.3,2012.0,7.0793206]
[1742740598099,3.0,2012.3,2012.0,12.0493206]
[1742740598801,3.0,2012.3,2012.0,7.0792906]
[1742740598986,12.71334186,2012.4,2012.2,4.96968]
[1742740598987,4.4359,2012.4,2012.2,4.96968]
[1742740599166,0.97100135,2012.6,2012.1,0.70792906]
[1742740599167,5.1862,2012.6,2012.1,1.04169909]
[1742740599371,4.4359,2012.6,2012.5,4.96894]
[1742740599566,7.4359,2012.6,2012.5,4.96894]
[1742740599801,0.7503,2012.8,2012.5,6.32437814]
[1742740600301,3.0,2012.8,2012.6,4.96865]
[1742740600724,3.0,2012.8,2012.7,0.28066484]
[1742740601019,3.0,2012.9,2012.6,10.73956]
[1742740601187,3.0,2013.0,2012.7,4.96844]
[1742740601376,9.21181143,2013.2,2012.8,6.042025]
[1742740601717,4.24448143,2013.2,2012.8,6.041995]
[1742740602004,4.4359,2013.3,2012.9,0.8024]
[1742740602191,9.40287,2013.3,2012.9,5.77017]
[1742740602900,9.40287,2013.3,2013.0,0.278637]
[1742740603294,4.4359,2013.3,2013.0,5.246267]
[1742740603487,5.72725,2013.4,2013.0,6.9314042]
[1742740603681,3.7603,2013.4,2013.1,4.96738]
[1742740604106,3.7603,2013.4,2013.2,0.27791007]
[1742740604307,8.72712,2013.4,2013.0,6.6527672]
[1742740604493,8.72712,2013.4,2013.1,0.27827352]
[1742740604693,8.72712,2013.4,2012.9,5.77032]
[1742740605073,4.96707,2013.3,2013.0,0.278637]
[1742740605808,8.72712,2013.4,2013.0,0.278637]
[1742740605974,8.72712,2013.4,2013.0,5.246337]
[1742740606170,8.72712,2013.4,2013.1,1.1016507]
[1742740606408,8.72712,2013.4,2013.1,6.34725422]
[1742740606409,0.01,2013.4,2013.1,6.34725422]
[1742740606703,0.01,2013.4,2013.2,5.73899]
[1742740606910,0.01,2013.4,2013.2,5.5319]
[1742740607074,0.01,2013.4,2013.3,0.27647608]
[1742740607476,0.01,2013.4,2013.3,6.43117976]
[1742740610288,0.01,2013.4,2013.3,1.46421976]
[1742740610488,0.01,2013.4,2013.3,11.19417976]
[1742740613601,0.01,2013.4,2013.3,0.27647608]
[1742740613807,0.01,2013.4,2013.2,4.757]
[1742740613977,0.01,2013.4,2013.3,0.27136972]
[1742740615231,0.01,2013.4,2013.2,4.758]
[1742740615515,0.01,2013.4,2013.3,0.27136972]
[1742740615718,0.01,2013.4,2013.3,1.87791876]
[1742740616290,0.01,2013.4,2013.3,0.27136972]
[1742740616914,4.97672,2013.4,2013.3,0.27136972]
[1742740617291,8.79752,2013.4,2013.3,0.27136972]
[1742740617609,7.96701,2013.3,2013.0,26.275]
[1742740617798,7.96701,2013.3,2013.1,0.27209658]
[1742740618389,12.93417,2013.3,2013.1,0.27209658]
[1742740618621,7.96701,2013.3,2013.1,0.27209658]
[1742740619924,4.96721,2013.2,2013.1,0.27209658]
[1742740621431,7.96701,2013.3,2013.1,0.27209658]
[1742740621727,8.30706186,2013.4,2013.1,0.27209658]
[1742740621894,5.79752,2013.4,2013.1,0.27209658]
[1742740622095,4.97672,2013.4,2013.1,0.27209658]
[1742740622296,9.94365,2013.4,2013.1,0.27209658]
[1742740622496,4.96697,2013.3,2013.1,0.27209658]
[1742740623127,4.97672,2013.4,2013.1,0.27209658]
[1742740623632,9.94365,2013.4,2013.1,0.27209658]
[1742740624428,4.97672,2013.4,2013.1,0.27209658]
[1742740625596,0.01,2013.4,2013.3,4.96696]
[1742740625797,0.01,2013.4,2013.3,5.239355]
[1742740626139,0.01,2013.4,2013.3,6.034855]
[1742740626702,0.01,2013.4,2013.3,6.584855]
[1742740629545,0.01,2013.4,2013.3,8.54439686]
[1742740629739,0.01,2013.4,2013.3,10.23542438]
[1742740631008,0.01,2013.4,2013.3,10.78542438]
[1742740632161,0.01,2013.4,2013.3,18.57042438]
[1742740633938,0.01,2013.4,2013.3,18.56642438]
[1742740634445,8.27180186,2014.4,2014.0,4.96515]
[1742740635046,4.96453,2014.3,2014.1,0.26895405]
[1742740635266,0.798,2014.2,2014.1,0.26895405]
[1742740635450,0.798,2014.2,2013.9,9.74848]
[1742740635652,0.798,2014.2,2014.1,0.26895405]
[1742740635836,5.76275,2014.2,2014.0,0.26931718]
[1742740636021,0.798,2014.2,2014.0,3.42077784]
[1742740636226,5.76226,2014.4,2014.0,13.35114784]
[1742740636445,0.798,2014.4,2014.1,4.96496]
[1742740636751,3.798,2014.4,2014.2,0.26859097]
[1742740637650,8.76229,2014.4,2014.2,0.26859097]
[1742740638019,8.76229,2014.4,2014.0,8.11664066]
[1742740638220,8.76229,2014.4,2014.1,1.95935778]
[1742740638421,8.76229,2014.4,2014.1,6.92434778]
[1742740638422,3.798,2014.4,2014.1,6.92434778]
[1742740639354,8.76229,2014.4,2014.1,1.95935778]
[1742740639651,3.798,2014.4,2014.1,1.95935778]
[1742740639840,3.798,2014.4,2014.2,4.96451]
[1742740640148,4.4359,2014.5,2014.3,5.23191412]
[1742740641055,5.2267,2015.0,2014.4,0.7563]
[1742740641261,0.7908,2015.0,2014.6,4.96355]
[1742740641466,0.7908,2015.0,2014.7,4.793]
[1742740641629,0.7908,2015.0,2014.7,5.05696879]
[1742740641830,5.75361,2015.0,2014.7,5.05696879]
[1742740642056,10.71656,2015.0,2014.7,0.26396879]
[1742740642226,4.62292905,2015.0,2014.7,10.02137879]
[1742740642430,9.58583905,2015.0,2014.7,5.05796879]
[1742740642631,9.58582905,2015.0,2014.7,5.05796879]
[1742740643246,14.54881905,2015.0,2014.7,5.05796879]
[1742740643531,0.7908,2015.0,2014.7,5.22737879]
[1742740643730,0.7908,2015.0,2014.7,0.26396879]
[1742740643731,5.7536,2015.0,2014.7,0.26396879]
[1742740645273,10.71659,2015.0,2014.7,0.26396879]
[1742740645458,4.96306,2014.9,2014.7,0.26396879]
[1742740645924,4.96327,2014.8,2014.7,0.26396879]
[1742740646124,9.58627905,2014.8,2014.7,0.26396879]
[1742740646349,4.62300905,2014.8,2014.7,0.26396879]
[1742740646559,5.75407,2014.8,2014.7,0.26396879]
[1742740646860,10.18997,2014.8,2014.7,0.26396879]
[1742740649757,13.18997,2014.8,2014.7,0.26396879]
[1742740651836,18.15343,2014.8,2014.4,4.96415]
[1742740652170,2.50954186,2014.7,2014.5,0.26373718]
[1742740655038,7.47317186,2014.7,2014.3,9.75739]
[1742740655241,7.47317186,2014.7,2014.4,0.26323173]
[1742740655745,0.7665,2014.6,2014.4,0.26323173]
[1742740656452,4.4359,2014.8,2014.4,1.07653173]
[1742740656659,4.4359,2014.8,2014.6,4.96363]
[1742740656881,4.4359,2014.8,2014.7,0.26216516]
[1742740657076,4.4359,2014.8,2014.7,5.22567516]
[1742740658486,2.50954186,2015.1,2014.8,4.96304]
[1742740658889,2.50954186,2015.1,2014.9,0.26083842]
[1742740659188,2.50954186,2015.1,2014.8,4.96304]
[1742740659385,0.7665,2015.2,2014.9,0.26083842]
[1742740659554,3.0,2015.1,2014.8,4.96313]
[1742740659757,3.0,2015.1,2014.9,0.26083842]
[1742740660068,2.50954186,2015.0,2014.7,4.96341]
[1742740660588,2.50954186,2015.0,2014.8,0.26120126]
[1742740661402,8.72952,2014.9,2014.8,0.26120126]
[1742740661682,8.72952,2014.9,2014.5,4.96395]
[1742740661887,8.72952,2014.9,2014.8,0.26120126]
[1742740662086,8.72952,2014.9,2014.5,4.96395]
[1742740662286,8.72952,2014.9,2014.4,9.75604]
[1742740662287,2.2483406,2014.8,2014.4,9.75604]
[1742740662462,7.2117006,2014.8,2014.6,0.24016027]
[1742740662667,4.96353,2014.7,2014.3,4.96447]
[1742740662879,3.27604186,2014.6,2014.4,0.24088619]
[1742740663797,8.23980186,2014.6,2014.4,0.24088619]
[1742740663994,9.06378205,2014.6,2014.2,31.21265]
[1742740664294,9.06378205,2014.6,2014.3,0.24031078]
[1742740664661,9.06378205,2014.6,2014.2,31.21265]
[1742740664662,9.06378205,2014.6,2014.2,26.248]
[1742740664893,4.96404,2014.5,2014.3,0.24033304]
[1742740665306,4.96404,2014.5,2014.2,26.248]
[1742740665464,4.96404,2014.5,2014.4,0.24017033]
[1742740665662,9.36682221,2014.5,2014.2,26.248]
[1742740665892,9.36682221,2014.5,2014.3,0.24053335]
[1742740666191,2.50954186,2014.4,2014.2,26.248]
[1742740666495,5.50954186,2014.4,2014.3,0.24053335]
[1742740666792,3.0,2014.4,2014.2,26.248]
[1742740666992,3.0,2014.4,2014.3,0.24073367]
[1742740667171,3.0,2014.4,2014.2,26.248]
[1742740667373,3.0,2014.4,2014.3,0.24075593]
[1742740667573,3.0,2014.4,2014.2,26.248]
[1742740667779,3.0,2014.4,2014.3,0.24068916]
[1742740667968,3.0,2014.4,2014.2,31.2127]
[1742740668169,3.0,2014.4,2014.3,0.24068916]
[1742740668369,3.0,2014.4,2014.2,31.2127]
[1742740671299,3.0,2014.4,2014.3,0.24057786]
[1742740672201,3.0,2014.4,2014.2,31.2127]
[1742740672404,3.0,2014.4,2014.3,0.24057786]
[1742740672712,3.0,2014.4,2014.2,26.248]
[1742740673002,3.0,2014.4,2014.3,0.24060012]
[1742740673208,3.0,2014.4,2014.2,26.248]
[1742740673385,3.0,2014.4,2014.3,0.24060012]
[1742740673579,3.0,2014.4,2014.2,26.248]
[1742740673785,3.0,2014.4,2014.3,0.24060012]
[1742740673986,3.0,2014.4,2014.2,31.21261]
[1742740675075,3.0,2014.4,2014.2,35.390682]
[1742740676808,3.0,2014.4,2014.2,31.21261]
[1742740679615,3.0,2014.4,2014.2,26.248]
[1742740680097,3.0,2014.4,2014.2,31.21272]
[1742740682710,11.91411257,2014.9,2014.2,31.21272]
[1742740682711,0.7762,2014.9,2014.4,4.96425]
[1742740682922,10.17474,2015.1,2014.7,4.96335]
[1742740683211,3.0,2015.0,2014.7,4.96335]
[1742740683608,10.17463,2015.1,2014.7,4.96335]
[1742740683814,3.0,2015.0,2014.7,4.96335]
[1742740684515,2.50954186,2015.0,2014.7,4.96335]
[1742740684683,5.50954186,2015.0,2014.7,4.96335]
[1742740684882,7.57423105,2015.0,2014.7,4.96335]
[1742740685413,12.53703105,2015.0,2014.6,5.73212]
[1742740685614,4.96304,2014.9,2014.5,9.72289]
[1742740685783,4.96304,2014.9,2014.5,9.72282]
[1742740685983,7.57423105,2015.0,2014.6,4.96363]
[1742740686406,12.53706105,2015.0,2014.6,4.96363]
[1742740686888,5.50954186,2015.0,2014.7,5.72132]
[1742740687208,3.0,2015.0,2014.7,5.72132]
[1742740689620,7.96281,2015.0,2014.7,0.7579]
[1742740689817,10.47235186,2015.0,2014.7,0.7579]
[1742740690016,12.53705105,2015.0,2014.7,0.7579]
[1742740690333,12.53705105,2015.0,2014.7,5.72141]
[1742740691313,7.57424105,2015.0,2014.7,5.72141]
[1742740691818,12.53704105,2015.0,2014.7,5.72141]
[1742740695933,12.53704105,2015.0,2014.6,4.96359]
[1742740696229,0.54790341,2014.9,2014.7,0.23863644]
[1742740697231,12.53704105,2015.0,2014.7,5.20211644]
[1742740697602,7.57424105,2015.0,2014.7,5.20211644]
[1742740699146,12.53709105,2015.0,2014.7,5.20211644]
[1742740700231,7.57424105,2015.0,2014.7,5.20211644]
[1742740700536,7.57424105,2015.0,2014.7,5.20202644]
[1742740700734,5.50954186,2015.0,2014.7,5.20202644]
[1742740701637,5.50954186,2015.0,2014.8,4.96326]
[1742740701819,3.0,2015.0,2014.9,4.96302]
[1742740702141,3.0,2015.0,2014.9,0.23746559]
[1742740702539,3.0,2015.0,2014.8,5.73153]
[1742740702734,3.0,2015.0,2014.9,0.23746559]
[1742740703119,3.0,2015.0,2014.8,5.73153]
[1742740703318,3.0,2015.0,2014.9,0.23746559]
[1742740703632,3.0,2015.0,2014.8,5.73153]
[1742740703835,10.47241186,2015.0,2014.9,0.23746559]
[1742740704044,4.96304,2014.9,2014.5,31.97524]
[1742740704338,5.71707,2014.7,2014.5,26.243]
[1742740705421,5.71707,2014.7,2014.6,0.2385542]
[1742740706439,8.71707,2014.7,2014.6,0.2385542]
[1742740708617,13.17617,2014.7,2014.6,0.2385542]
[1742740708821,15.73737419,2014.7,2014.6,0.2385542]
[1742740709140,18.24691605,2014.7,2014.6,0.2385542]
[1742740710245,4.9645,2014.3,2014.2,4.731]
[1742740710407,4.9645,2014.3,2014.0,26.245]
[1742740710607,5.7411,2014.3,2014.0,26.245]
[1742740711013,4.96478,2014.2,2014.0,26.245]
[1742740712544,4.96499,2014.1,2014.0,26.245]
[1742740713437,7.96499,2014.1,2014.0,26.245]
[1742740713643,9.28658119,2014.1,2014.0,26.245]
[1742740713837,9.28658119,2014.1,2014.0,26.46686682]
[1742740716529,7.96499,2014.1,2014.0,26.46686682]
[1742740716731,3.0,2014.1,2014.0,26.46686682]
[1742740718018,7.96499,2014.1,2014.0,26.46686682]
[1742740729153,7.96499,2014.1,2014.0,0.22186682]
[1742740729537,4.96532,2014.0,2013.6,36.93635165]
[1742740729927,10.73128,2014.0,2013.6,36.93635165]
[1742740730138,5.76582,2014.0,2013.6,36.93635165]
[1742740730739,4.96549,2013.9,2013.6,36.93635165]
[1742740730938,5.76582,2014.0,2013.6,36.93635165]
[1742740731158,5.76582,2014.0,2013.6,36.93628165]
[1742740733161,5.76582,2014.0,2013.7,0.22517261]
[1742740733483,4.96551,2013.9,2013.7,0.22517261]
[1742740734036,4.96532,2014.0,2013.7,4.96595]
[1742740734241,4.96532,2014.0,2013.8,0.22480938]
[1742740736863,4.96532,2014.0,2013.6,36.93637165]
[1742740737065,7.96532,2014.0,2013.9,0.22455701]
[1742740737265,7.96532,2014.0,2013.6,36.93637165]
[1742740737476,7.96532,2014.0,2013.9,0.22455701]
[1742740737650,7.96532,2014.0,2013.6,36.93637165]
[1742740737845,7.96532,2014.0,2013.9,0.22455701]
[1742740738046,7.96532,2014.0,2013.6,36.93629165]
[1742740738246,7.96532,2014.0,2013.9,0.22455701]
[1742740738439,7.96532,2014.0,2013.6,31.97016165]
[1742740738762,7.96532,2014.0,2013.9,0.22455701]
[1742740738962,7.96532,2014.0,2013.6,10.68430165]
[1742740739474,3.0,2014.0,2013.7,5.19124344]
[1742740740046,7.96529,2014.0,2013.7,5.19124344]
[1742740742170,7.96529,2014.0,2013.7,0.22528344]
[1742740742343,14.43320169,2014.0,2013.7,0.22528344]
[1742740742671,4.96552,2013.9,2013.8,0.22492021]
[1742740742839,5.76902,2013.9,2013.8,0.22492021]
[1742740743040,5.76902,2013.9,2013.6,10.68432165]
[1742740743240,4.96552,2013.9,2013.8,0.22492021]
[1742740743543,4.96552,2013.9,2013.7,0.22528344]
[1742740743740,4.96552,2013.9,2013.8,0.22492021]
[1742740744141,4.96552,2013.9,2013.6,5.71816165]
[1742740744365,4.96552,2013.9,2013.8,0.22511973]
[1742740744562,4.96552,2013.9,2013.7,0.22548297]
[1742740744766,4.96552,2013.9,2013.8,0.22511973]
[1742740745151,9.46777169,2014.0,2013.6,10.68436165]
[1742740745350,9.46777169,2014.0,2013.8,0.22511973]
[1742740745561,14.43325169,2014.0,2013.7,0.22548297]
[1742740745874,7.96529,2014.0,2013.8,0.22511973]
[1742740746264,7.96529,2014.0,2013.6,10.68436165]
[1742740746570,7.96529,2014.0,2013.9,0.22506697]
[1742740746873,9.93250917,2014.0,2013.6,10.68436165]
[1742740747078,7.96529,2014.0,2013.6,15.65041165]
[1742740747243,7.96529,2014.0,2013.7,0.2257934]
[1742740747671,7.96529,2014.0,2013.6,10.68421165]
[1742740747876,7.96529,2014.0,2013.8,0.22543017]
[1742740748169,7.96529,2014.0,2013.7,0.2257934]
[1742740748342,7.96529,2014.0,2013.9,0.22506697]
[1742740748543,7.96529,2014.0,2013.8,0.22543017]
[1742740748743,7.96529,2014.0,2013.9,0.22506697]
[1742740749172,7.96529,2014.0,2013.6,10.68421165]
[1742740749343,7.96529,2014.0,2013.9,0.22506697]
[1742740749545,7.96529,2014.0,2013.6,10.68421165]
[1742740749546,4.96555,2013.9,2013.6,5.71816165]
[1742740749944,4.96555,2013.9,2013.7,0.22568255]
[1742740750755,7.96531,2014.0,2013.7,0.22568255]
[1742740750973,7.96531,2014.0,2013.6,10.68437165]
[1742740751877,7.96531,2014.0,2013.7,0.22568255]
[1742740752282,7.96531,2014.0,2013.6,10.68437165]
[1742740752482,7.96531,2014.0,2013.8,0.22531931]
[1742740752646,7.96531,2014.0,2013.7,0.22568255]
[1742740752845,7.96531,2014.0,2013.9,0.22495612]
[1742740753070,9.93253117,2014.0,2013.8,0.22531931]
[1742740753376,9.93253117,2014.0,2013.9,0.22495612]
[1742740753755,9.93253117,2014.0,2013.6,10.68437165]
[1742740753957,7.96531,2014.0,2013.9,0.22495612]
[1742740754170,7.96531,2014.0,2013.6,10.68437165]
[1742740754884,7.96531,2014.0,2013.7,0.22568255]
[1742740755384,7.96531,2014.0,2013.6,10.68427165]
[1742740755565,7.96531,2014.0,2013.8,0.22531931]
[1742740755878,7.96531,2014.0,2013.9,0.22495612]
[1742740756071,9.93253117,2014.0,2013.9,0.22495612]
[1742740756268,9.93253117,2014.0,2013.6,10.68427165]
[1742740756486,7.96531,2014.0,2013.9,0.22495612]
[1742740756778,7.96531,2014.0,2013.6,10.68427165]
[1742740756957,7.96531,2014.0,2013.9,0.22495612]
[1742740757157,12.93073,2014.0,2013.6,10.68427165]
[1742740757402,12.93073,2014.0,2013.9,0.22495612]
[1742740757604,14.89799117,2014.0,2013.9,0.22495612]
[1742740758285,4.96549,2013.9,2013.6,10.68427165]
[1742740758877,7.96531,2014.0,2013.6,10.68426165]
[1742740758878,3.0,2014.0,2013.6,10.68426165]
[1742740759079,3.0,2014.0,2013.7,4.96588]
[1742740759651,7.96525,2014.0,2013.7,4.96588]
[1742740760483,3.0,2014.0,2013.7,4.96588]
[1742740760684,3.0,2014.0,2013.8,0.8307]
[1742740760851,3.0,2014.0,2013.8,5.79634]
[1742740761853,3.0,2014.0,2013.8,0.8307]
[1742740762264,3.0,2014.0,2013.8,5.79634]
[1742740764484,3.0,2014.1,2013.8,7.29875169]
[1742740764781,3.0,2014.1,2013.8,5.79627]
[1742740765685,3.0,2014.1,2013.8,5.79626]
[1742740765884,3.0,2014.1,2013.9,4.96545]
[1742740766652,3.0,2014.1,2013.8,5.79626]
[1742740767686,3.0,2014.1,2013.8,12.26434169]
[1742740768689,3.0,2014.1,2013.8,5.79626]
[1742740768887,7.96506,2014.1,2013.8,0.8307]
[1742740769080,3.0,2014.1,2013.8,5.79626]
[1742740769893,3.0,2014.1,2013.8,10.76181]
[1742740770263,3.0,2014.1,2013.9,4.96548]
[1742740771064,3.0,2014.1,2013.8,5.79635]
[1742740772500,3.0,2014.1,2013.8,10.76196]
[1742740772672,3.0,2014.1,2013.8,4.96561]
[1742740772876,7.96502,2014.1,2013.8,4.96561]
[1742740773600,3.0,2014.1,2013.8,4.96561]
[1742740774299,3.0,2014.1,2013.9,4.96544]
[1742740775596,3.0,2014.1,2013.9,0.7604]
[1742740775800,10.18005,2014.5,2014.0,4.96524]
[1742740775971,10.18001,2014.5,2014.2,4.96454]
[1742740776167,9.39991,2014.5,2014.2,4.96454]
[1742740776373,9.63211,2014.9,2014.2,1.50248169]
[1742740776374,6.71848169,2014.8,2014.2,1.50248169]
[1742740776604,10.17927,2014.8,2014.4,0.7604]
[1742740776783,3.0,2014.7,2014.4,10.39356]
[1742740777683,11.84375417,2014.8,2014.4,10.39356]
[1742740777884,3.0,2014.7,2014.4,10.39356]
[1742740778901,4.4359,2014.8,2014.7,4.96351]
[1742740779202,6.46518169,2015.1,2014.7,7.21815301]
[1742740779372,15.86381169,2015.1,2014.7,10.39191]
[1742740780607,1.50248169,2015.0,2014.7,10.39191]
[1742740781802,1.50248169,2015.0,2014.7,5.4284]
[1742740781803,6.46528169,2015.0,2014.7,5.4284]
[1742740782008,1.50248169,2014.9,2014.7,4.668]
[1742740784972,7.46483139,2015.0,2014.7,4.668]
[1742740785178,5.50203139,2015.0,2014.7,9.6314]
[1742740785378,5.50203139,2015.0,2014.7,13.792049]
[1742740787108,10.46488139,2015.0,2014.7,8.828649]
[1742740787309,10.46488139,2015.0,2014.7,4.668]
[1742740787607,5.50203139,2015.0,2014.7,9.63141]
[1742740789329,3.0,2015.0,2014.7,9.63138]
[1742740789479,3.0,2015.0,2014.8,4.96322]
[1742740790079,3.0,2015.0,2014.7,9.63147]
[1742740790475,3.0,2015.0,2014.6,4.96374]